bitfinex/quotes_ETHUSD_20240710
["timestamp","ask_amount","ask_price","bid_price","bid_amount"]
[1720637451239,1.02621318,3113.6,3112.8,2.862]
[1720637451529,0.55,3113.5,3112.8,2.862]
[1720637451729,1.02623701,3113.4,3112.8,2.862]
[1720637452812,0.55,3113.3,3112.4,2.862]
[1720637453011,1.02623701,3113.2,3112.4,2.862]
[1720637453323,0.55,3113.1,3112.4,2.862]
[1720637453519,0.7626237,3113.1,3112.4,2.862]
[1720637453744,0.55,3113.1,3112.4,2.862]
[1720637455446,1.02648961,3113.0,3112.1,2.862]
[1720637456034,1.02655471,3112.9,3112.1,2.862]
[1720637456234,2.9414,3113.1,3112.1,2.862]
[1720637456430,1.32069453,3113.0,3112.1,2.862]
[1720637457035,0.55,3112.9,3112.1,2.862]
[1720637460051,0.33670582,3112.8,3112.1,2.862]
[1720637461955,0.55,3112.7,3112.1,2.862]
[1720637464650,0.33670582,3112.8,3112.1,2.862]
[1720637464875,0.33670582,3112.8,3112.1,3.1482]
[1720637465863,0.33670582,3112.8,3112.1,2.862]
[1720637469428,0.33670582,3112.8,3111.7,2.862]
[1720637469629,0.55,3112.7,3111.7,2.862]
[1720637478169,2.3294,3112.6,3111.3,2.862]
[1720637478339,0.28794,3112.5,3111.3,2.862]
[1720637478527,0.55,3112.4,3111.3,2.862]
[1720637478964,0.33675632,3112.3,3111.3,2.862]
[1720637479268,2.8794,3112.2,3111.3,2.862]
[1720637480733,2.8794,3112.2,3110.9,2.862]
[1720637480938,3.32161563,3112.1,3110.9,2.862]
[1720637481167,0.55,3112.0,3110.9,2.862]
[1720637481564,2.441,3111.9,3110.9,2.862]
[1720637481734,2.441,3111.9,3110.5,2.862]
[1720637481735,0.55,3111.8,3110.5,2.862]
[1720637481940,0.2991,3111.7,3110.5,2.862]
[1720637482245,0.55,3111.6,3110.5,2.862]
[1720637483492,0.55,3111.6,3110.9,2.862]
[1720637487673,0.2991,3111.7,3110.9,2.862]
[1720637492277,3.0,3111.8,3110.9,2.862]
[1720637492579,0.55,3111.7,3110.9,2.862]
[1720637492742,0.55,3111.8,3110.9,2.862]
[1720637493080,3.55,3111.8,3110.9,2.862]
[1720637494279,0.33676653,3111.7,3110.9,2.862]
[1720637495413,0.33676653,3111.7,3111.3,2.862]
[1720637496485,0.33676653,3111.7,3111.4,0.06427409]
[1720637496648,0.33676653,3111.7,3111.3,2.92626782]
[1720637497752,7.44,3112.5,3111.3,2.862]
[1720637497954,0.33673654,3112.4,3111.3,2.862]
[1720637498287,0.33673654,3112.4,3111.4,0.2862]
[1720637498655,2.3085,3112.3,3111.3,2.862]
[1720637498899,0.55,3112.2,3111.3,2.862]
[1720637508288,0.55,3112.2,3110.9,2.862]
[1720637508494,2.4371,3112.1,3110.5,2.862]
[1720637508786,0.24371,3112.0,3110.5,2.862]
[1720637509136,0.55,3111.9,3110.5,2.862]
[1720637509915,2.2714,3111.8,3110.5,2.862]
[1720637510214,2.2714,3111.7,3110.2,6.23985008]
[1720637510452,2.3969,3111.5,3110.1,2.862]
[1720637510732,2.3969,3111.4,3109.7,2.862]
[1720637510895,2.3969,3111.1,3109.7,2.862]
[1720637511098,2.3969,3110.9,3109.7,2.862]
[1720637511410,2.3969,3110.9,3109.2,2.4945]
[1720637511411,5.3969,3110.9,3109.3,2.862]
[1720637511585,0.55,3110.8,3109.3,2.862]
[1720637511793,3.55,3110.8,3109.3,2.862]
[1720637516806,3.55,3110.8,3109.7,2.862]
[1720637517115,3.55,3110.8,3110.1,2.862]
[1720637517809,0.55,3110.8,3110.1,2.862]
[1720637519773,3.55,3110.8,3110.1,2.862]
[1720637520071,0.33678232,3110.7,3110.1,2.862]
[1720637520951,0.55,3110.6,3109.7,2.862]
[1720637521825,0.33678232,3110.7,3109.7,2.862]
[1720637522367,0.33678232,3110.7,3109.8,2.3725]
[1720637522727,0.33678232,3110.7,3110.1,2.862]
[1720637524848,0.33678232,3110.7,3110.5,2.862]
[1720637525049,0.33678232,3110.7,3110.6,0.2862]
[1720637526553,0.33678232,3110.7,3110.6,0.2862]
[1720637527682,0.33678232,3110.7,3110.5,2.862]
[1720637527851,0.33678232,3110.7,3110.1,5.862]
[1720637528178,0.33678232,3110.7,3110.1,2.862]
[1720637530771,1.36422191,3110.7,3110.1,2.862]
[1720637531244,0.33678232,3110.7,3110.1,2.862]
[1720637531444,0.33678232,3110.7,3110.1,3.1482]
[1720637533867,0.33678232,3110.7,3110.1,2.862]
[1720637537780,0.33678232,3110.7,3109.7,2.862]
[1720637537981,0.55,3110.6,3109.7,2.862]
[1720637538372,2.3986,3110.5,3109.7,2.862]
[1720637543272,0.33678232,3110.7,3110.1,2.862]
[1720637544559,0.33678232,3110.7,3110.5,2.862]
[1720637547398,0.33678232,3110.7,3109.7,6.23985008]
[1720637547399,0.33678232,3110.7,3110.1,2.862]
[1720637549904,2.3879,3110.6,3109.7,2.862]
[1720637550404,0.55,3110.5,3109.7,2.862]
[1720637551405,2.3879,3110.6,3109.7,2.862]
[1720637555473,2.3879,3110.6,3110.1,2.862]
[1720637560105,0.33679226,3110.5,3110.1,2.862]
[1720637563449,0.33679226,3110.5,3110.2,2.33218878]
[1720637563754,2.3363,3111.4,3110.3,0.58370061]
[1720637563912,0.33681321,3111.3,3110.9,2.862]
[1720637568477,0.33681321,3111.3,3110.3,0.51941888]
[1720637568478,0.33681321,3111.3,3110.5,2.862]
[1720637568673,0.33681321,3111.3,3110.6,3.0]
[1720637568858,0.33681321,3111.3,3110.7,0.5862]
[1720637569439,2.3363,3111.4,3110.7,0.5862]
[1720637574350,2.3363,3111.4,3110.6,3.0]
[1720637577381,2.3363,3111.4,3110.5,2.862]
[1720637577562,2.9374,3111.3,3110.5,2.862]
[1720637577756,2.9374,3111.3,3110.1,9.10185008]
[1720637581468,2.3874,3111.3,3110.5,2.862]
[1720637581669,2.3874,3111.3,3110.5,3.1482]
[1720637583575,2.3874,3111.3,3110.6,0.06428989]
[1720637583899,2.3874,3111.3,3110.5,3.1482]
[1720637584318,2.3874,3111.3,3110.6,0.06428997]
[1720637584527,2.3874,3111.3,3110.9,2.862]
[1720637585127,3.0,3111.6,3110.9,2.862]
[1720637588128,2.69543325,3111.7,3110.9,2.862]
[1720637590812,0.55,3111.6,3110.9,2.862]
[1720637594169,1.02709392,3111.5,3110.9,2.862]
[1720637596342,1.02707406,3111.4,3110.9,2.862]
[1720637596674,1.02707025,3111.3,3110.9,2.862]
[1720637596878,1.02707025,3111.2,3110.9,2.862]
[1720637597040,1.02707025,3111.1,3110.9,2.862]
[1720637597242,1.02707025,3111.0,3110.9,2.862]
[1720637598042,1.02707025,3111.4,3110.9,2.862]
[1720637598377,1.02707025,3111.3,3110.9,2.862]
[1720637598583,1.02707025,3111.2,3110.9,2.862]
[1720637598872,1.02707025,3111.1,3110.9,2.862]
[1720637599073,1.02707025,3111.0,3110.9,2.862]
[1720637599282,0.42725272,3111.5,3110.9,2.862]
[1720637599283,1.02707025,3111.4,3110.9,2.862]
[1720637599438,1.22750255,3111.4,3110.9,2.862]
[1720637599840,1.02713612,3111.3,3110.9,2.862]
[1720637600065,1.02713612,3111.2,3110.9,2.862]
[1720637600259,1.02713612,3111.1,3110.9,2.862]
[1720637600445,1.02713612,3111.0,3110.9,2.862]
[1720637600646,1.02713612,3111.0,3110.9,1.194]
[1720637600947,1.22756842,3111.4,3110.9,1.194]
[1720637601147,1.22756842,3111.4,3111.1,1.194]
[1720637601148,1.74261823,3111.3,3111.1,1.194]
[1720637601375,1.02713612,3111.2,3111.1,1.194]
[1720637601776,1.57713612,3111.2,3111.1,1.194]
[1720637602086,3.84623612,3111.2,3111.1,1.194]
[1720637603385,3.84635691,3111.2,3111.1,1.194]
[1720637603554,4.30124397,3111.2,3111.1,1.194]
[1720637606872,4.30125827,3111.2,3111.1,1.194]
[1720637607066,4.30125827,3111.2,3110.1,8.52575008]
[1720637607067,4.30125827,3111.2,3110.9,1.194]
[1720637607266,1.57727121,3111.1,3110.9,1.194]
[1720637607493,1.02727121,3111.0,3110.9,1.194]
[1720637607792,1.45739704,3111.0,3110.9,1.194]
[1720637609643,1.45746494,3111.0,3110.9,1.194]
[1720637610526,1.45746023,3111.0,3110.9,1.194]
[1720637612799,1.0273344,3111.0,3110.9,1.194]
[1720637613525,1.0273344,3111.6,3110.9,1.194]
[1720637613724,1.0273344,3111.6,3111.4,1.194]
[1720637613900,1.02714812,3111.5,3111.4,1.194]
[1720637614624,0.55,3111.5,3111.4,1.194]
[1720637614788,2.16832551,3111.5,3111.4,1.194]
[1720637617407,1.14119,3111.5,3111.4,1.194]
[1720637617859,2.16833754,3111.5,3111.4,1.194]
[1720637619439,1.57714754,3111.5,3111.4,1.194]
[1720637620049,1.91401795,3111.5,3111.4,1.194]
[1720637621176,1.91393489,3111.5,3111.4,1.194]
[1720637624640,0.88687041,3111.5,3111.4,1.194]
[1720637628139,0.33687041,3111.5,3111.4,1.194]
[1720637636644,0.33687041,3111.5,3111.2,1.194]
[1720637636645,0.88687041,3111.5,3111.2,1.194]
[1720637637057,0.55,3111.4,3111.2,1.194]
[1720637638289,0.55,3111.4,3111.2,1.194]
[1720637640456,0.33687041,3111.5,3111.2,1.194]
[1720637640689,0.33687041,3111.5,3111.4,1.194]
[1720637645786,0.33687041,3111.5,3110.3,3.0]
[1720637645787,2.77577041,3111.5,3110.4,2.2761]
[1720637645996,0.82757704,3111.4,3111.2,1.194]
[1720637646978,0.33687041,3111.5,3111.2,1.194]
[1720637647191,0.33687041,3111.5,3111.4,1.194]
[1720637664832,0.33687041,3111.5,3111.4,3.446]
[1720637665191,3.21,3111.9,3111.4,3.446]
[1720637665394,3.0,3112.6,3111.8,1.194]
[1720637665592,3.0,3112.6,3111.5,0.06426533]
[1720637665593,3.21,3113.2,3112.5,1.194]
[1720637665832,3.21,3113.2,3112.9,1.194]
[1720637665833,2.3091,3113.1,3112.9,1.194]
[1720637666000,2.64573427,3113.1,3112.9,1.194]
[1720637666996,3.0,3113.0,3112.9,1.194]
[1720637667194,2.64573427,3113.1,3112.9,1.194]
[1720637667839,0.55,3113.0,3112.9,1.194]
[1720637669034,1.29707343,3113.0,3112.9,1.194]
[1720637671953,1.29707343,3113.0,3112.7,1.194]
[1720637673214,2.3944,3112.9,3112.5,1.194]
[1720637673422,0.55,3112.8,3112.5,1.194]
[1720637676462,2.3698,3112.7,3112.5,1.194]
[1720637676763,0.84198,3112.6,3112.3,1.194]
[1720637676931,0.84198,3112.6,3111.5,3.0]
[1720637677118,0.84198,3112.6,3111.4,2.3401]
[1720637677119,3.84198,3112.6,3111.4,2.3401]
[1720637677326,3.84198,3112.6,3112.1,1.194]
[1720637677327,2.3274,3112.5,3112.1,1.194]
[1720637677565,0.55,3112.4,3112.1,1.194]
[1720637677766,0.58774,3112.3,3112.1,1.194]
[1720637678269,0.58774,3112.3,3110.6,6.23985008]
[1720637678422,0.58774,3112.3,3109.8,0.67412391]
[1720637678423,3.0053,3112.2,3110.7,2.2578]
[1720637678628,3.0053,3112.2,3111.8,1.194]
[1720637678940,0.359304,3112.1,3112.0,1.194]
[1720637679137,0.909304,3112.1,3112.0,1.194]
[1720637680068,1.24589912,3112.1,3112.0,1.194]
[1720637680372,0.88659512,3112.1,3112.0,1.194]
[1720637680577,0.33659512,3112.1,3112.0,1.194]
[1720637683367,0.33659512,3112.1,3111.8,1.194]
[1720637683368,3.88659512,3112.1,3111.8,1.194]
[1720637683607,0.55,3112.0,3111.8,1.194]
[1720637683787,0.38865951,3111.9,3111.8,1.194]
[1720637683993,0.93865951,3111.9,3111.8,1.194]
[1720637684928,1.96568796,3111.9,3111.8,1.194]
[1720637685812,1.57702845,3111.9,3111.8,1.194]
[1720637686818,0.55,3111.9,3111.8,1.194]
[1720637687016,1.02701156,3111.9,3111.8,1.194]
[1720637687229,1.57701156,3111.9,3111.8,1.194]
[1720637690519,2.77101825,3111.9,3110.9,2.2672]
[1720637690719,1.57701825,3111.8,3111.0,0.34612]
[1720637690932,1.02701825,3111.7,3111.0,0.34612]
[1720637691134,2.22101825,3111.7,3111.0,0.34612]
[1720637691439,1.02701825,3111.6,3111.0,0.34612]
[1720637694133,1.02706084,3111.5,3111.0,0.34612]
[1720637694330,1.02706084,3111.4,3111.0,0.34612]
[1720637694517,1.02706084,3111.3,3111.0,0.34612]
[1720637694709,1.02706084,3111.2,3111.0,0.34612]
[1720637694947,1.194,3111.7,3111.0,0.34612]
[1720637695112,1.02705694,3111.6,3111.0,0.34612]
[1720637695319,1.36368471,3111.6,3111.0,0.34612]
[1720637697445,0.33662777,3111.6,3111.0,0.34612]
[1720637697614,1.36368923,3111.6,3110.9,2.2672]
[1720637698244,1.194,3111.5,3110.6,2.3289]
[1720637698552,1.02706146,3111.4,3110.6,2.3289]
[1720637699105,1.02706146,3111.4,3110.6,2.98119]
[1720637699599,1.02706146,3111.4,3110.7,2.3078]
[1720637699800,0.33662777,3111.6,3111.3,3.5018]
[1720637700045,0.33662777,3111.6,3111.5,1.194]
[1720637700214,0.33662777,3111.6,3111.5,1.54418]
[1720637700950,0.33662777,3111.6,3111.5,3.87718]
[1720637706557,7.44,3112.1,3111.6,2.3762]
[1720637706870,2.3828,3112.8,3112.0,1.194]
[1720637707028,1.57651829,3112.7,3112.0,1.194]
[1720637707232,1.02651829,3112.6,3112.2,2.3762]
[1720637707468,0.3366632,3112.7,3112.3,0.24404619]
[1720637707768,0.3366632,3112.7,3112.2,3.5702]
[1720637709669,0.3366632,3112.7,3112.2,2.3762]
[1720637713041,0.3366632,3112.7,3111.9,2.3895]
[1720637713637,1.36310868,3112.7,3111.9,2.3895]
[1720637714041,2.4712,3112.6,3111.8,1.194]
[1720637714235,1.41007818,3112.5,3111.7,3.0]
[1720637714439,1.02664731,3112.4,3111.7,3.0]
[1720637714640,1.02664731,3112.3,3111.8,1.194]
[1720637714943,2.4712,3112.6,3111.8,1.194]
[1720637715157,1.02663389,3112.5,3111.8,1.194]
[1720637717843,1.0265932,3112.4,3111.8,1.194]
[1720637718144,1.194,3112.1,3111.2,2.4232]
[1720637718346,1.194,3111.9,3111.2,2.4232]
[1720637718575,1.5765932,3111.8,3110.9,1.194]
[1720637718892,1.0265932,3111.7,3110.9,1.194]
[1720637719182,0.55,3111.8,3110.9,1.194]
[1720637719183,1.02698788,3111.6,3110.9,1.194]
[1720637719381,1.02698788,3111.5,3110.9,1.194]
[1720637719583,1.02698788,3111.4,3110.9,1.194]
[1720637719762,1.02702839,3111.3,3110.9,1.194]
[1720637719959,0.55,3111.8,3110.9,1.194]
[1720637720165,1.22363762,3111.7,3110.9,1.194]
[1720637720377,1.02703169,3111.7,3110.9,1.194]
[1720637722678,0.33666633,3111.6,3110.9,1.194]
[1720637723061,0.33666633,3111.6,3111.2,2.4527]
[1720637724850,0.33666633,3111.6,3111.3,1.194]
[1720637725071,0.33666633,3111.6,3111.5,1.194]
[1720637725478,0.33666633,3111.6,3111.2,2.4527]
[1720637725689,0.33666633,3111.6,3111.2,3.6467]
[1720637726573,0.33666633,3111.6,3111.2,2.4527]
[1720637726885,0.33666633,3111.6,3110.7,5.4844]
[1720637728910,0.33666633,3111.6,3110.7,5.4844]
[1720637729213,0.33666633,3111.6,3110.8,1.23765401]
[1720637729797,0.33666633,3111.6,3110.9,2.4909]
[1720637730033,1.02693498,3111.9,3110.9,2.4909]
[1720637731842,1.02696398,3111.8,3110.9,2.4909]
[1720637732139,1.02696398,3111.7,3110.9,2.4909]
[1720637732313,1.02696398,3111.6,3111.0,0.24909]
[1720637732514,2.3672,3112.0,3111.0,0.24909]
[1720637733346,1.57691766,3111.9,3111.0,0.24909]
[1720637733506,1.02691766,3111.8,3111.0,0.24909]
[1720637735144,0.55,3111.9,3111.0,0.24909]
[1720637735303,1.026918,3111.8,3111.0,0.24909]
[1720637737839,1.4213298,3111.8,3110.9,2.4909]
[1720637738027,2.3863,3111.6,3110.7,3.0]
[1720637738225,1.026918,3111.5,3110.6,3.65229]
[1720637738748,2.3863,3111.6,3110.6,3.65229]
[1720637739043,1.02702215,3111.5,3110.6,3.65229]
[1720637740032,0.33669137,3111.4,3110.6,3.65229]
[1720637740238,0.33669137,3111.4,3110.7,0.594129]
[1720637742347,1.36367543,3111.4,3110.7,0.594129]
[1720637742548,0.33669137,3111.4,3110.7,0.594129]
[1720637745902,0.33669137,3111.4,3110.6,3.0]
[1720637746185,0.33669137,3111.4,3110.5,2.289]
[1720637748793,0.33669137,3111.4,3110.5,3.483]
[1720637748981,1.3636215,3111.4,3110.5,3.483]
[1720637749172,1.02693013,3111.3,3110.5,3.483]
[1720637749365,0.33669137,3111.4,3110.5,3.8313]
[1720637749552,1.36322397,3111.4,3110.5,3.8313]
[1720637749866,1.36322397,3111.4,3110.5,3.483]
[1720637750050,1.36322397,3111.4,3110.5,1.194]
[1720637753091,1.02643633,3111.3,3110.5,1.194]
[1720637753391,1.02643633,3111.2,3110.5,1.194]
[1720637753587,1.02643633,3111.1,3110.5,1.194]
[1720637753757,1.02643633,3111.0,3110.5,1.194]
[1720637753958,0.33669137,3111.4,3110.5,1.194]
[1720637754194,1.36312755,3111.4,3110.5,1.194]
[1720637754357,0.25571275,3111.3,3110.5,1.194]
[1720637754556,1.28214893,3111.3,3110.5,1.194]
[1720637756717,1.02642859,3111.2,3110.5,1.194]
[1720637756877,1.02642859,3111.1,3110.5,1.194]
[1720637757079,1.02642859,3111.0,3110.5,1.194]
[1720637757481,0.33671377,3110.9,3110.5,1.194]
[1720637757679,1.36314236,3110.9,3110.5,1.194]
[1720637758022,0.33671377,3110.9,3110.5,1.194]
[1720637763243,1.36277428,3110.9,3110.5,1.194]
[1720637763449,1.02606051,3110.8,3110.5,1.194]
[1720637763728,1.02606051,3110.7,3110.5,1.194]
[1720637763888,0.33671377,3110.9,3110.5,1.194]
[1720637764389,0.33671377,3110.9,3110.2,3.0]
[1720637764703,2.93615449,3110.9,3110.0,2.3192]
[1720637765019,1.02632934,3110.8,3109.7,2.3192]
[1720637765224,1.02632934,3110.8,3109.7,3.5132]
[1720637765390,1.02632934,3110.8,3109.9,1.194]
[1720637765391,0.29361545,3110.7,3109.9,1.194]
[1720637766025,0.29361545,3110.7,3109.0,2.4952]
[1720637766026,1.194,3110.5,3109.0,2.4952]
[1720637766229,1.194,3110.5,3109.5,1.194]
[1720637766230,1.02609595,3110.4,3109.5,1.194]
[1720637766524,2.4008,3110.3,3109.5,1.194]
[1720637766726,1.0260966,3110.2,3109.3,1.194]
[1720637766927,1.0260966,3110.2,3109.0,2.4952]
[1720637766928,1.65608966,3110.1,3109.0,2.4952]
[1720637767230,1.65608966,3110.1,3108.6,6.23985008]
[1720637767231,1.194,3109.8,3108.7,2.3816]
[1720637767391,1.194,3109.8,3108.7,3.5756]
[1720637767728,1.194,3109.6,3108.7,3.5756]
[1720637768032,1.0260966,3109.5,3108.3,2.2567]
[1720637768203,1.24810626,3109.5,3108.6,1.194]
[1720637768405,2.4565,3109.3,3108.4,1.194]
[1720637768710,1.57589472,3109.2,3108.4,1.194]
[1720637768890,1.02589472,3109.1,3108.4,1.194]
[1720637769433,0.55,3109.2,3108.4,1.194]
[1720637769635,0.30065,3109.1,3108.4,1.194]
[1720637770736,0.30065,3109.1,3108.3,2.2567]
[1720637771237,0.33673716,3109.0,3108.3,2.2567]
[1720637772795,0.33673716,3109.0,3108.4,0.06433316]
[1720637773300,0.33673716,3109.0,3108.3,2.2567]
[1720637773534,0.33673716,3109.0,3108.4,0.52567]
[1720637773707,0.33673716,3109.0,3108.4,3.52567]
[1720637773907,0.33673716,3109.0,3108.5,0.06432301]
[1720637774110,0.33673716,3109.0,3108.5,2.93332301]
[1720637774922,0.33673716,3109.0,3108.5,2.869]
[1720637775133,0.33673716,3109.0,3108.6,0.639467]
[1720637776631,2.3206,3109.8,3108.6,3.70378711]
[1720637777022,0.33670822,3109.4,3108.6,3.70378711]
[1720637778630,0.33670822,3109.4,3108.6,3.639467]
[1720637779031,0.33670822,3109.4,3108.6,3.70378624]
[1720637779238,0.33670822,3109.4,3108.7,0.65727862]
[1720637779440,0.33670822,3109.4,3108.8,2.2766]
[1720637779654,0.33670822,3109.4,3108.8,5.2766]
[1720637783630,5.549,3110.1,3108.8,5.2766]
[1720637783835,0.3366933,3110.0,3108.8,5.2766]
[1720637784045,0.3366933,3110.0,3108.9,0.59338786]
[1720637784233,0.3366933,3110.0,3108.9,3.59338786]
[1720637785348,5.549,3110.1,3108.9,6.46238786]
[1720637786722,5.549,3110.1,3108.9,3.59338786]
[1720637787835,2.9972,3110.0,3108.9,3.59338786]
[1720637788039,2.2787,3109.8,3108.7,0.65727862]
[1720637788259,2.2787,3109.8,3109.0,3.0]
[1720637788553,2.2787,3109.8,3108.6,3.0]
[1720637788762,2.2787,3109.8,3108.4,2.292]
[1720637791385,2.2787,3109.8,3108.4,2.292]
[1720637792483,2.2787,3109.8,3108.5,0.06432121]
[1720637793402,2.2787,3109.8,3108.6,0.23563212]
[1720637793564,2.2787,3109.8,3108.7,0.06432121]
[1720637794273,2.2787,3109.8,3108.6,0.23563212]
[1720637799578,2.2787,3109.8,3108.7,0.06432135]
[1720637799778,2.2787,3109.8,3108.6,0.23563212]
[1720637799979,2.623642,3109.8,3108.7,0.32999535]
[1720637801422,2.623642,3109.8,3108.6,0.23563212]
[1720637802615,2.623642,3109.8,3109.1,1.195]
[1720637804085,2.623642,3109.8,3108.9,1.195]
[1720637804299,1.02681066,3109.7,3108.9,1.195]
[1720637804608,2.3372,3109.6,3108.9,1.195]
[1720637806715,2.3372,3109.6,3109.1,1.195]
[1720637808518,1.02666435,3109.5,3109.1,1.195]
[1720637808878,1.36305079,3109.5,3108.9,1.195]
[1720637810191,0.33671705,3109.4,3108.9,1.195]
[1720637810406,1.3633814,3109.4,3108.9,1.195]
[1720637810910,2.3456,3109.3,3108.9,1.195]
[1720637811089,1.02666435,3109.2,3108.9,1.195]
[1720637812103,1.02676518,3109.1,3108.9,1.195]
[1720637812310,2.3456,3109.3,3108.9,1.195]
[1720637812536,1.02678251,3109.2,3108.9,1.195]
[1720637813642,2.4524,3109.1,3108.7,1.195]
[1720637813854,1.02678251,3109.0,3108.7,1.195]
[1720637814437,1.02678251,3109.0,3108.3,3.0]
[1720637814438,1.02678251,3109.0,3108.9,1.195]
[1720637814743,0.33671705,3109.4,3108.9,1.195]
[1720637814744,2.62131705,3109.4,3108.9,1.195]
[1720637814941,1.02678733,3109.3,3109.1,1.195]
[1720637815613,1.02668933,3109.2,3109.1,1.195]
[1720637816011,2.62131705,3109.4,3109.1,1.195]
[1720637816202,1.02667381,3109.3,3109.1,1.195]
[1720637816815,1.02667381,3109.2,3109.1,1.195]
[1720637817658,0.33671705,3109.4,3109.1,1.195]
[1720637817799,0.33671705,3109.4,3109.3,1.195]
[1720637818115,0.33671705,3109.4,3109.3,3.5236]
[1720637818316,0.33671705,3109.4,3109.3,3.87596]
[1720637818704,0.33671705,3109.4,3109.3,6.87596]
[1720637819423,0.33671705,3109.4,3109.3,4.54736]
[1720637820541,0.33671705,3109.4,3109.3,1.54736]
[1720637820745,0.33671705,3109.4,3109.3,4.54736]
[1720637821241,0.33671705,3109.4,3109.3,1.54736]
[1720637822716,0.33671705,3109.4,3109.3,1.195]
[1720637824225,2.60921705,3109.4,3109.1,1.195]
[1720637824427,1.02675956,3109.3,3109.1,1.195]
[1720637828227,1.02675956,3109.3,3108.7,1.195]
[1720637828427,2.2878,3109.2,3108.7,1.195]
[1720637828852,1.02636675,3109.1,3108.7,1.195]
[1720637829327,1.02636675,3109.1,3108.2,6.23985008]
[1720637829328,2.2989,3109.0,3108.5,1.195]
[1720637829551,2.63563971,3109.0,3108.5,1.195]
[1720637830639,1.02636675,3108.9,3108.5,1.195]
[1720637830959,0.36620065,3108.8,3108.5,1.195]
[1720637831160,1.02636675,3108.7,3108.5,1.195]
[1720637832363,1.02641331,3108.6,3108.5,1.195]
[1720637832562,1.02641331,3108.7,3108.5,1.195]
[1720637834267,2.63563971,3109.0,3108.5,1.195]
[1720637834458,1.0264121,3108.9,3108.7,1.195]
[1720637835695,1.0264368,3108.8,3108.7,1.195]
[1720637835848,1.0264368,3108.9,3108.7,1.195]
[1720637836047,1.0264368,3108.8,3108.7,1.195]
[1720637836790,1.0264368,3108.9,3108.7,1.195]
[1720637837685,0.33673971,3109.0,3108.7,1.195]
[1720637837987,0.33673971,3109.0,3108.9,1.195]
[1720637838354,0.33673971,3109.0,3108.7,1.195]
[1720637839082,2.83493971,3109.0,3108.7,1.195]
[1720637839478,1.02644412,3108.9,3108.5,1.195]
[1720637841301,1.02644412,3108.9,3108.3,1.195]
[1720637842603,1.0262592,3108.8,3108.3,1.195]
[1720637842830,1.02625987,3108.7,3108.3,1.195]
[1720637843106,1.02625987,3108.6,3108.3,1.195]
[1720637843277,2.83493971,3109.0,3108.3,1.195]
[1720637843475,1.30975783,3108.9,3108.3,1.195]
[1720637844205,1.02626386,3108.9,3107.8,3.0]
[1720637844502,1.02626386,3108.9,3108.5,1.195]
[1720637846190,1.02619856,3108.8,3108.5,1.195]
[1720637846504,2.83493971,3109.0,3108.5,1.195]
[1720637846713,1.02619385,3108.9,3108.5,1.195]
[1720637847066,1.02619385,3108.9,3108.7,1.195]
[1720637847702,0.33673971,3109.0,3108.7,1.195]
[1720637848067,0.33673971,3109.0,3108.9,1.195]
[1720637848926,0.33673971,3109.0,3108.9,1.55227]
[1720637849836,0.33673971,3109.0,3108.9,0.35727]
[1720637849996,0.33673971,3109.0,3108.9,1.55227]
[1720637850841,0.33673971,3109.0,3108.9,3.22427]
[1720637851050,0.33673971,3109.0,3108.9,6.22427]
[1720637853839,0.33673971,3109.0,3108.9,6.28858839]
[1720637854014,0.33673971,3109.0,3108.9,6.22427]
[1720637854546,3.21,3110.1,3108.9,8.68407]
[1720637854701,3.21,3110.1,3109.0,0.868407]
[1720637855046,3.21,3110.1,3109.0,3.868407]
[1720637857819,0.33670144,3110.0,3109.0,3.868407]
[1720637861460,0.33670144,3110.0,3109.1,2.45850775]
[1720637861636,0.33670144,3110.0,3109.3,2.867]
[1720637861825,0.33670144,3110.0,3109.4,3.35100773]
[1720637862031,0.33670144,3110.0,3109.7,2.867]
[1720637862564,2.338,3110.6,3109.7,2.867]
[1720637862750,0.33670539,3110.4,3109.7,2.867]
[1720637863163,1.02590765,3110.9,3109.7,2.867]
[1720637863452,0.33671616,3110.8,3109.8,0.2867]
[1720637872672,0.33671616,3110.8,3110.2,1.194]
[1720637874288,2.9453,3110.7,3110.0,1.194]
[1720637877511,1.02542205,3110.6,3110.0,1.194]
[1720637877663,0.43074382,3110.6,3110.0,1.194]
[1720637879403,1.02511883,3110.5,3110.0,1.194]
[1720637879605,1.02511883,3110.5,3109.8,1.194]
[1720637879810,2.296,3110.4,3109.8,1.194]
[1720637880550,2.4397,3110.2,3109.3,1.194]
[1720637881049,1.02513321,3110.1,3109.3,1.194]
[1720637881612,2.4397,3110.2,3109.5,1.194]
[1720637882025,1.02511488,3110.1,3109.5,1.194]
[1720637882339,2.4397,3110.2,3109.5,1.194]
[1720637882539,1.11634564,3110.3,3109.7,1.194]
[1720637882540,0.33674564,3110.3,3109.7,1.194]
[1720637882718,0.33674564,3110.3,3109.9,1.194]
[1720637882719,1.95422744,3110.3,3109.9,1.194]
[1720637882919,0.9291002,3110.3,3109.9,1.194]
[1720637884409,1.02486369,3110.2,3109.7,1.194]
[1720637884613,0.9291002,3110.3,3109.7,1.194]
[1720637884829,1.02493746,3110.2,3109.7,1.194]
[1720637885139,0.9291002,3110.3,3109.7,1.194]
[1720637885338,1.02493002,3110.2,3109.7,1.194]
[1720637887073,0.9291002,3110.3,3109.7,1.194]
[1720637887374,1.02486705,3110.2,3109.7,1.194]